fUSD/lending_fUSD_20250806
["ID","MTS","AMOUNT","RATE_DAILY","PERIOD"]
[377610174,1754453446597,-1931.54,0.00035616,14]
[377610175,1754453446605,-400.0,0.00035616,14]
[377610176,1754453446614,-400.0,0.00035616,14]
[377610177,1754453446623,-3124.69,0.00035616,2]
[377610178,1754453446633,-400.0,0.00035616,14]
[377610179,1754453446642,-3187.7,0.00035616,14]
[377610180,1754453446651,-1903.71,0.00035616,14]
[377610181,1754453446660,-841.64,0.00035616,14]
[377610182,1754453446669,-466.92,0.00035616,14]
[377610183,1754453446678,-400.0,0.00035616,14]
[377610184,1754453446687,-779.39,0.00035616,14]
[377610185,1754453446695,-401.02345699,0.00035616,14]
[377610186,1754453446706,-400.0,0.00035616,14]
[377610187,1754453446716,-400.0,0.00035616,14]
[377610188,1754453446726,-451.98,0.00035616,14]
[377610189,1754453446735,-409.76,0.00035616,14]
[377610190,1754453446745,-1549.45,0.00035616,14]
[377610191,1754453446756,-400.0,0.00035616,14]
[377610192,1754453446765,-400.0,0.00035616,14]
[377610193,1754453446775,-1492.04,0.00035616,14]
[377610194,1754453446785,-994.14,0.00035616,14]
[377610195,1754453446794,-400.0,0.00035616,14]
[377610196,1754453446804,-500.0,0.00035616,14]
[377610197,1754453446813,-500.0,0.00035616,14]
[377610198,1754453446823,-422.06,0.00035616,14]
[377610199,1754453446833,-825.96,0.00035616,14]
[377610200,1754453446844,-500.0,0.00035616,14]
[377610201,1754453446853,-400.0,0.00035616,14]
[377610202,1754453446862,-500.0,0.00035616,14]
[377610203,1754453446872,-500.0,0.00035616,14]
[377610204,1754453446881,-1731.94,0.00035616,14]
[377610205,1754453447028,-400.0,0.00035616,14]
[377610206,1754453447038,-500.0,0.00035616,14]
[377610207,1754453447047,-400.0,0.00035616,14]
[377610208,1754453447056,-500.0,0.00035616,14]
[377610209,1754453447066,-861.88,0.00035616,14]
[377610210,1754453447075,-500.0,0.00035616,14]
[377610211,1754453447083,-500.0,0.00035616,14]
[377610212,1754453447095,-400.0,0.00035616,14]
[377610213,1754453447104,-500.0,0.00035616,14]
[377610214,1754453447114,-400.0,0.00035616,14]
[377610215,1754453447123,-400.0,0.00035616,14]
[377610216,1754453447133,-500.0,0.00035616,14]
[377610217,1754453447143,-651.8,0.00035616,14]
[377610218,1754453447152,-500.0,0.00035616,14]
[377610219,1754453447166,-500.0,0.00035616,14]
[377610220,1754453447180,-400.0,0.00035616,14]
[377610221,1754453447189,-500.0,0.00035616,14]
[377610222,1754453447199,-400.0,0.00035616,14]
[377610223,1754453447208,-500.0,0.00035616,14]
[377610224,1754453447217,-500.0,0.00035616,14]
[377610225,1754453447227,-500.0,0.00035616,14]
[377610226,1754453447236,-234.02,0.00035616,14]
[377610227,1754453447245,-400.0,0.00035616,14]
[377610228,1754453447257,-500.0,0.00035616,14]
[377610229,1754453447267,-500.0,0.00035616,14]
[377610230,1754453447277,-400.0,0.00035616,14]
[377610231,1754453447286,-400.0,0.00035616,14]
[377610232,1754453447296,-500.0,0.00035616,14]
[377610233,1754453447307,-603.31,0.00035616,14]
[377610234,1754453447316,-500.0,0.00035616,14]
[377610235,1754453447325,-400.80016708,0.00035616,14]
[377610236,1754453447342,-1205.84,0.00035616,14]
[377610237,1754453447351,-611.03044331,0.00035616,14]
[377610238,1754453447360,-481.12908951,0.00035616,14]
[377610239,1754453447370,-1331.83,0.00035616,14]
[377610240,1754453447380,-500.0,0.00035616,14]
[377610241,1754453447390,-500.0,0.00035616,14]
[377610242,1754453447399,-400.0,0.00035616,14]
[377610243,1754453447410,-500.0,0.00035616,14]
[377610244,1754453447419,-500.0,0.00035616,14]
[377610245,1754453447429,-1959.82,0.00035616,14]
[377610246,1754453447438,-400.0,0.00035616,14]
[377610247,1754453447448,-500.0,0.00035616,14]
[377610248,1754453447457,-500.0,0.00035616,14]
[377610249,1754453447469,-1923.84,0.00035616,14]
[377610250,1754453447479,-1049.12,0.00035616,14]
[377610251,1754453447488,-400.0,0.00035616,14]
[377610252,1754453447499,-1056.57,0.00035616,14]
[377610253,1754453447512,-400.0,0.00035616,14]
[377610254,1754453447523,-500.0,0.00035616,14]
[377610255,1754453447532,-400.0,0.00035616,14]
[377610256,1754453447542,-500.0,0.00035616,14]
[377610257,1754453447551,-500.0,0.00035616,14]
[377610258,1754453447561,-1311.5,0.00035616,14]
[377610259,1754453447571,-500.0,0.00035616,14]
[377610260,1754453447580,-400.0,0.00035616,14]
[377610261,1754453447590,-400.0,0.00035616,14]
[377610262,1754453447600,-658.01,0.00035616,14]
[377610263,1754453447609,-500.0,0.00035616,14]
[377610264,1754453447619,-500.0,0.00035616,14]
[377610265,1754453447628,-500.0,0.00035616,14]
[377610266,1754453447638,-400.0,0.00035616,14]
[377610267,1754453447647,-500.0,0.00035616,14]
[377610268,1754453447657,-500.0,0.00035616,14]
[377610269,1754453447666,-500.0,0.00035616,14]
[377610270,1754453447676,-500.0,0.00035616,14]
[377610271,1754453447685,-500.0,0.00035616,14]
[377610272,1754453447694,-500.0,0.00035616,14]
[377610273,1754453447703,-500.0,0.00035616,14]
[377610274,1754453447712,-439.28,0.00035616,14]
[377610275,1754453447722,-500.0,0.00035616,14]
[377610276,1754453447731,-400.0,0.00035616,14]
[377610277,1754453447741,-500.0,0.00035616,14]
[377610278,1754453447751,-500.0,0.00035616,14]
[377610279,1754453447761,-400.0,0.00035616,14]
[377610280,1754453447772,-500.0,0.00035616,14]
[377610281,1754453447781,-400.0,0.00035616,14]
[377610282,1754453447791,-365.4328249,0.00035616,14]
[377610283,1754453447800,-714.83,0.00035616,14]
[377610284,1754453447809,-400.0,0.00035616,14]
[377610285,1754453447819,-400.0,0.00035616,14]
[377610286,1754453447827,-1732.04,0.00035616,14]
[377610287,1754453447839,-1836.34,0.00035616,14]
[377610288,1754453447848,-676.44,0.00035616,14]
[377610289,1754453447857,-874.85,0.00035616,14]
[377610290,1754453447867,-698.47,0.00035616,14]
[377610291,1754453447876,-519.68,0.00035616,14]
[377610292,1754453447886,-400.0,0.00035616,14]
[377610293,1754453447895,-400.0,0.00035616,14]
[377610294,1754453447904,-1818.94,0.00035616,14]
[377610295,1754453447914,-555.99,0.00035616,14]
[377610296,1754453447923,-400.0,0.00035616,14]
[377610297,1754453447932,-460.72864286,0.00035616,14]
[377610298,1754453447941,-400.0,0.00035616,14]
[377610299,1754453447951,-400.0,0.00035616,14]
[377610300,1754453447960,-400.0,0.00035616,14]
[377610301,1754453447969,-1611.99,0.00035616,14]
[377610302,1754453447978,-2558.3,0.00035616,14]
[377610303,1754453447987,-771.12,0.00035616,14]
[377610304,1754453447996,-400.0,0.00035616,14]
[377610305,1754453448006,-1126.17,0.00035616,14]
[377610306,1754453448018,-400.0,0.00035616,14]
[377610307,1754453448028,-1088.41,0.00035616,14]
[377610308,1754453448038,-400.0,0.00035616,14]
[377610309,1754453448048,-400.0,0.00035616,14]
[377610310,1754453448058,-2962.47,0.00035616,14]
[377610311,1754453448067,-400.0,0.00035616,120]
[377610312,1754453448077,-1863.96,0.00035616,14]
[377610313,1754453448088,-1026.77,0.00035616,14]
[377610314,1754453448097,-1549.98,0.00035616,14]
[377610315,1754453448107,-1852.15,0.00035616,14]
[377610316,1754453448116,-400.0,0.00035616,14]
[377610317,1754453448126,-400.0,0.00035616,14]
[377610318,1754453448136,-890.54,0.00035616,14]
[377610319,1754453448145,-309.05609868,0.00035616,14]
[377610320,1754453448154,-400.0,0.00035616,14]
[377610321,1754453448164,-400.0,0.00035616,14]
[377610322,1754453448174,-1254.56,0.00035616,14]
[377610323,1754453448183,-1212.69,0.00035616,14]
[377610324,1754453448193,-400.0,0.00035616,14]
[377610325,1754453448202,-400.0,0.00035616,14]
[377610326,1754453448212,-400.0,0.00035616,14]
[377610327,1754453448221,-2039.62,0.00035616,14]
[377610328,1754453448230,-400.0,0.00035616,14]
[377610329,1754453448239,-605.68,0.00035616,14]
[377610330,1754453448249,-400.0,0.00035616,14]
[377610331,1754453448262,-1696.72,0.00035616,14]
[377610332,1754453448272,-560.78,0.00035616,14]
[377610333,1754453448281,-684.63,0.00035616,14]
[377610334,1754453448290,-400.0,0.00035616,14]
[377610335,1754453448300,-400.0,0.00035616,14]
[377610336,1754453448310,-1929.41,0.00035616,14]
[377610337,1754453448319,-734.68,0.00035616,14]
[377610338,1754453448329,-400.0,0.00035616,14]
[377610339,1754453448339,-400.0,0.00035616,14]
[377610340,1754453448349,-402.89,0.00035616,14]
[377610341,1754453448358,-1645.76,0.00035616,14]
[377610342,1754453448367,-400.0,0.00035616,14]
[377610343,1754453448377,-1476.67,0.00035616,14]
[377610344,1754453448386,-1688.49,0.00035616,14]
[377610345,1754453448396,-400.0,0.00035616,14]
[377610346,1754453448405,-2762.8,0.00035616,14]
[377610347,1754453448415,-400.0,0.00035616,14]
[377610348,1754453448425,-1732.2,0.00035616,14]
[377610349,1754453448434,-594.81,0.00035616,14]
[377610350,1754453448444,-400.0,0.00035616,14]
[377610351,1754453448453,-400.0,0.00035616,14]
[377610352,1754453448463,-412.44,0.00035616,7]
[377610353,1754453448473,-756.7,0.00035616,14]
[377610354,1754453448482,-1713.7,0.00035616,14]
[377610355,1754453448492,-1796.27,0.00035616,14]
[377610356,1754453448501,-400.0,0.00035616,14]
[377610357,1754453448511,-1567.44,0.00035616,14]
[377610358,1754453448521,-531.52,0.00035616,14]
[377610359,1754453448530,-400.0,0.00035616,14]
[377610360,1754453448540,-1301.31,0.00035616,14]
[377610361,1754453448549,-2347.62,0.00035616,14]
[377610362,1754453448559,-400.0,0.00035616,14]
[377610363,1754453448568,-859.79,0.00035616,14]
[377610364,1754453448577,-1396.52,0.00035616,14]
[377610365,1754453448587,-1089.18,0.00035616,14]
[377610366,1754453448597,-400.0,0.00035616,14]
[377610367,1754453448606,-2014.62,0.00035616,14]
[377610368,1754453448617,-400.0,0.00035616,14]
[377610369,1754453448626,-500.0,0.00035616,14]
[377610370,1754453448636,-500.0,0.00035616,14]
[377610371,1754453448646,-500.0,0.00035616,14]
[377610372,1754453448655,-500.0,0.00035616,14]
[377610373,1754453448664,-400.0,0.00035616,14]
[377610374,1754453448674,-1196.22,0.00035616,14]
[377610375,1754453448683,-1415.15,0.00035616,14]
[377610376,1754453448692,-425.04,0.00035616,14]
[377610377,1754453448702,-400.0,0.00035616,14]
[377610378,1754453448711,-939.42,0.00035616,14]
[377610379,1754453448721,-1115.56,0.00035616,14]
[377610380,1754453448731,-1011.87,0.00035616,14]
[377610381,1754453448741,-2305.73,0.00035616,14]
[377610382,1754453448750,-1278.88,0.00035616,14]
[377610383,1754453448760,-1287.36,0.00035616,14]
[377610384,1754453448771,-400.0,0.00035616,14]
[377610385,1754453448781,-400.0,0.00035616,14]
[377610386,1754453448791,-1816.11,0.00035616,14]
[377610387,1754453448801,-400.0,0.00035616,14]
[377610388,1754453448811,-863.19,0.00035616,14]
[377610389,1754453448821,-400.0,0.00035616,14]
[377610390,1754453448830,-404.8,0.00035616,14]
[377610391,1754453448840,-400.0,0.00035616,14]
[377610392,1754453448849,-400.0,0.00035616,14]
[377610393,1754453448859,-1517.36,0.00035616,14]
[377610394,1754453448869,-601.29,0.00035616,14]
[377610395,1754453448879,-524.10746082,0.00035616,14]
[377610396,1754453448889,-2154.29,0.00035616,14]
[377610397,1754453448899,-400.0,0.00035616,14]
[377610398,1754453448909,-400.0,0.00035616,14]
[377610399,1754453448918,-400.0,0.00035616,14]
[377610400,1754453448928,-629.98,0.00035616,14]
[377610401,1754453448937,-675.57,0.00035616,14]
[377610402,1754453448948,-400.0,0.00035616,14]
[377610403,1754453448964,-400.0,0.00035616,14]
[377610404,1754453448974,-154.21976592,0.00035616,14]
[377610405,1754453448984,-1914.98,0.00035616,14]
[377610406,1754453448993,-861.05,0.00035616,14]
[377610407,1754453449003,-1712.68,0.00035616,14]
[377610408,1754453449012,-1388.26,0.00035616,14]
[377610409,1754453449022,-1874.96,0.00035616,14]
[377610410,1754453449032,-1925.78,0.00035616,14]
[377610411,1754453449042,-608.6,0.00035616,14]
[377610412,1754453449051,-1541.38,0.00035616,14]
[377610413,1754453449061,-400.0,0.00035616,14]
[377610414,1754453449070,-400.0,0.00035616,14]
[377610415,1754453449080,-700.61,0.00035616,14]
[377610416,1754453449090,-430.33,0.00035616,14]
[377610417,1754453449100,-400.0,0.00035616,14]
[377610418,1754453449110,-400.0,0.00035616,14]
[377610419,1754453449119,-400.0,0.00035616,14]
[377610420,1754453449129,-700.64,0.00035616,14]
[377610421,1754453449138,-1131.3,0.00035616,14]
[377610422,1754453449148,-400.0,0.00035616,14]
[377610423,1754453449157,-1010.59,0.00035616,14]
[377610424,1754453449167,-400.0,0.00035616,14]
[377610425,1754453449176,-972.15,0.00035616,14]
[377610426,1754453449187,-622.71,0.00035616,14]
[377610427,1754453449197,-461.06446057,0.00035616,14]
[377610428,1754453449207,-2124.08,0.00035616,14]
[377610429,1754453449217,-400.0,0.00035616,14]
[377610430,1754453449227,-400.0,0.00035616,14]
[377610431,1754453449541,-400.0,0.00035616,14]
[377610432,1754453449618,-511.66,0.00035616,14]
[377610433,1754453449628,-188.8417045,0.00035616,14]
[377610434,1754453449638,-400.0,0.00035616,14]
[377610435,1754453449650,-400.0,0.00035616,14]
[377610436,1754453449661,-730.45,0.00035616,14]
[377610437,1754453449670,-400.0,0.00035616,14]
[377610438,1754453449679,-400.0,0.00035616,14]
[377610439,1754453449690,-1868.59,0.00035616,14]
[377610440,1754453449699,-1587.25,0.00035616,14]
[377610441,1754453449708,-400.0,0.00035616,14]
[377610442,1754453449717,-400.0,0.00035616,14]
[377610443,1754453449726,-226.69108837,0.00035616,14]
[377610444,1754453449735,-1673.55,0.00035616,14]
[377610445,1754453449744,-1415.93,0.00035616,14]
[377610446,1754453449754,-400.0,0.00035616,14]
[377610447,1754453449764,-1768.43,0.00035616,14]
[377610448,1754453449773,-1717.31,0.00035616,14]
[377610449,1754453449783,-400.0,0.00035616,14]
[377610450,1754453449792,-1106.27,0.00035616,14]
[377610451,1754453449803,-901.41,0.00035616,14]
[377610452,1754453449813,-400.0,0.00035616,14]
[377610453,1754453449822,-597.11,0.00035616,14]
[377610454,1754453449832,-1896.4,0.00035616,14]
[377610455,1754453449841,-2400.54,0.00035616,14]
[377610456,1754453449850,-1712.82,0.00035616,14]
[377610457,1754453449859,-400.0,0.00035616,14]
[377610458,1754453449871,-794.35,0.00035616,14]
[377610459,1754453449881,-400.0,0.00035616,14]
[377610460,1754453449890,-2000.28,0.00035616,14]
[377610461,1754453449903,-278.76512662,0.00035616,14]
[377610462,1754453449912,-507.16,0.00035616,14]
[377610463,1754453449921,-400.0,0.00035616,14]
[377610464,1754453449931,-537.34,0.00035616,14]
[377610465,1754453449942,-400.0,0.00035616,14]
[377610466,1754453449952,-400.0,0.00035616,14]
[377610467,1754453449962,-432.53,0.00035616,14]
[377610468,1754453449972,-1887.84,0.00035616,14]
[377610469,1754453449981,-1393.22,0.00035616,14]
[377610470,1754453449991,-400.0,0.00035616,14]
[377610471,1754453450000,-2443.0,0.00035616,14]
[377610472,1754453450010,-1067.03,0.00035616,14]
[377610473,1754453450019,-400.0,0.00035616,14]
[377610474,1754453450028,-400.0,0.00035616,14]
[377610475,1754453450037,-1490.91,0.00035616,14]
[377610476,1754453450047,-3171.39,0.00035616,14]
[377610477,1754453450057,-2086.23,0.00035616,14]
[377610478,1754453450066,-877.98,0.00035616,14]
[377610479,1754453450075,-400.0,0.00035616,14]
[377610480,1754453450085,-400.0,0.00035616,14]
[377610481,1754453450095,-400.0,0.00035616,14]
[377610482,1754453450105,-495.32,0.00035616,14]
[377610483,1754453450115,-400.0,0.00035616,14]
[377610484,1754453450125,-400.0,0.00035616,14]
[377610485,1754453450135,-1928.27,0.00035616,14]
[377610486,1754453450144,-440.63,0.00035616,14]
[377610487,1754453450154,-400.0,0.00035616,14]
[377610488,1754453450163,-400.0,0.00035616,14]
[377610489,1754453450172,-400.0,0.00035616,14]
[377610490,1754453450182,-549.16,0.00035616,14]
[377610491,1754453450191,-951.31,0.00035616,14]
[377610492,1754453450200,-828.42,0.00035616,14]
[377610493,1754453450210,-562.06,0.00035616,14]
[377610494,1754453450219,-400.0,0.00035616,14]
[377610495,1754453450229,-2643.13,0.00035616,14]
[377610496,1754453450238,-2678.32,0.00035616,14]
[377610497,1754453450247,-2144.68,0.00035616,14]
[377610498,1754453450261,-400.0,0.00035616,14]
[377610499,1754453450270,-400.0,0.00035616,14]
[377610500,1754453450280,-411.26,0.00035616,14]
[377610501,1754453450290,-400.0,0.00035616,14]
[377610502,1754453450301,-400.0,0.00035616,14]
[377610503,1754453450310,-400.0,0.00035616,14]
[377610504,1754453450320,-1864.0,0.00035616,14]
[377610505,1754453450330,-3631.53,0.00035616,14]
[377610506,1754453450339,-400.0,0.00035616,14]
[377610507,1754453450349,-1767.39,0.00035616,14]
[377610508,1754453450358,-1850.4,0.00035616,14]
[377610509,1754453450367,-888.78,0.00035616,14]
[377610510,1754453450376,-400.0,0.00035616,14]
[377610511,1754453450385,-1006.58,0.00035616,14]
[377610512,1754453450395,-1119.79,0.00035616,14]
[377610513,1754453450404,-559.94,0.00035616,14]
[377610514,1754453450413,-1920.53,0.00035616,14]
[377610515,1754453450422,-559.94,0.00035616,14]
[377610516,1754453450432,-400.0,0.00035616,14]
[377610517,1754453450442,-559.94,0.00035616,14]
[377610518,1754453450453,-559.94,0.00035616,14]
[377610519,1754453450462,-559.94,0.00035616,14]
[377610520,1754453450471,-559.94,0.00035616,14]
[377610521,1754453450482,-559.94,0.00035616,14]
[377610522,1754453450493,-400.0,0.00035616,14]
[377610523,1754453450504,-559.94,0.00035616,14]
[377610524,1754453450515,-559.94,0.00035616,14]
[377610525,1754453450525,-400.0,0.00035616,14]
[377610526,1754453450534,-559.94,0.00035616,14]
[377610527,1754453450544,-559.94,0.00035616,14]
[377610528,1754453450553,-400.0,0.00035616,14]
[377610529,1754453450562,-559.94,0.00035616,14]
[377610530,1754453450571,-400.0,0.00035616,14]
[377610531,1754453450582,-732.22,0.00035616,14]
[377610532,1754453450591,-400.0,0.00035616,14]
[377610533,1754453450601,-400.0,0.00035616,14]
[377610534,1754453450610,-559.94,0.00035616,14]
[377610535,1754453450619,-559.94,0.00035616,14]
[377610536,1754453450628,-559.94,0.00035616,14]
[377610537,1754453450637,-559.94,0.00035616,14]
[377610538,1754453450647,-559.94,0.00035616,14]
[377610539,1754453450656,-559.94,0.00035616,14]
[377610540,1754453450665,-400.0,0.00035616,14]
[377610541,1754453450675,-559.94,0.00035616,14]
[377610542,1754453450684,-559.94,0.00035616,14]
[377610543,1754453450693,-559.94,0.00035616,14]
[377610544,1754453450702,-1975.45,0.00035616,14]
[377610545,1754453450711,-559.94,0.00035616,14]
[377610546,1754453450721,-3190.32,0.00035616,14]
[377610547,1754453450729,-1245.15,0.00035616,14]
[377610548,1754453450739,-559.94,0.00035616,14]
[377610549,1754453450748,-559.98880928,0.00035616,14]
[377610550,1754453450757,-1461.05,0.00035616,14]
[377610551,1754453450767,-286.72155279,0.00035616,14]
[377610552,1754453450776,-400.0,0.00035616,14]
[377610553,1754453450786,-400.0,0.00035616,14]
[377610554,1754453450795,-400.0,0.00035616,14]
[377610555,1754453450803,-2429.99,0.00035616,14]
[377610556,1754453450813,-2269.36,0.00035616,14]
[377610557,1754453450822,-1851.69,0.00035616,14]
[377610558,1754453450831,-400.0,0.00035616,14]
[377610559,1754453450842,-400.0,0.00035616,14]
[377610560,1754453450851,-444.57,0.00035616,14]
[377610561,1754453450863,-400.0,0.00035616,2]
[377610562,1754453450872,-400.0,0.00035616,14]
[377610563,1754453450881,-400.0,0.00035616,14]
[377610564,1754453450891,-400.0,0.00035616,14]
[377610565,1754453450900,-400.0,0.00035616,14]
[377610566,1754453450909,-400.0,0.00035616,14]
[377610567,1754453450918,-1764.79,0.00035616,14]
[377610568,1754453450927,-1157.57,0.00035616,14]
[377610569,1754453450936,-1735.6,0.00035616,14]
[377610570,1754453450945,-1950.02,0.00035616,14]
[377610571,1754453450955,-406.95375219,0.00035616,14]
[377610572,1754453450964,-400.0,0.00035616,14]
[377610573,1754453450973,-747.21,0.00035616,14]
[377610574,1754453450982,-400.0,0.00035616,14]
[377610575,1754453450991,-400.0,0.00035616,14]
[377610576,1754453451001,-400.0,0.00035616,14]
[377610577,1754453451010,-1937.03,0.00035616,14]
[377610578,1754453451019,-400.0,0.00035616,14]
[377610579,1754453451029,-2165.76,0.00035616,14]
[377610580,1754453451038,-400.0,0.00035616,14]
[377610581,1754453451048,-400.0,0.00035616,14]
[377610582,1754453451057,-400.0,0.00035616,14]
[377610583,1754453451066,-400.0,0.00035616,14]
[377610584,1754453451075,-1579.08,0.00035616,14]
[377610585,1754453451084,-400.0,0.00035616,14]
[377610586,1754453451095,-508.47,0.00035616,14]
[377610587,1754453451105,-4497.25,0.00035616,14]
[377610588,1754453451114,-1313.53,0.00035616,14]
[377610589,1754453451124,-1722.86,0.00035616,14]
[377610590,1754453451133,-400.0,0.00035616,14]
[377610591,1754453451143,-400.0,0.00035616,14]
[377610592,1754453451152,-441.77,0.00035616,14]
[377610593,1754453451162,-400.0,0.00035616,14]
[377610594,1754453451171,-400.0,0.00035616,14]
[377610595,1754453451180,-990.26,0.00035616,14]
[377610596,1754453451190,-400.0,0.00035616,14]
[377610597,1754453451199,-935.86,0.00035616,14]
[377610598,1754453451209,-1482.2,0.00035616,14]
[377610599,1754453451218,-993.91,0.00035616,14]
[377610600,1754453451228,-1476.89,0.00035616,14]
[377610601,1754453451237,-2618.51,0.00035616,14]
[377610602,1754453451248,-1844.86,0.00035616,14]
[377610603,1754453451260,-400.0,0.00035616,14]
[377610604,1754453451269,-622.05,0.00035616,14]
[377610605,1754453451279,-682.56,0.00035616,14]
[377610606,1754453451291,-400.0,0.00035616,14]
[377610607,1754453451302,-400.0,0.00035616,14]
[377610608,1754453451312,-400.0,0.00035616,14]
[377610609,1754453451322,-623.13,0.00035616,14]
[377610610,1754453451333,-1610.42,0.00035616,14]
[377610611,1754453451345,-2496.29,0.00035616,14]
[377610612,1754453451354,-400.0,0.00035616,14]
[377610613,1754453451363,-400.0,0.00035616,14]
[377610614,1754453451372,-1032.1,0.00035616,14]
[377610615,1754453451382,-702.27,0.00035616,14]
[377610616,1754453451392,-1553.56,0.00035616,14]
[377610617,1754453451401,-1865.07,0.00035616,14]
[377610618,1754453451410,-1716.67,0.00035616,14]
[377610619,1754453451420,-1975.08,0.00035616,14]
[377610620,1754453451430,-1559.49,0.00035616,14]
[377610621,1754453451439,-400.0,0.00035616,14]
[377610622,1754453451449,-400.0,0.00035616,14]
[377610623,1754453451458,-1776.23,0.00035616,14]
[377610624,1754453451467,-400.0,0.00035616,14]
[377610625,1754453451477,-2135.31,0.00035616,14]
[377610626,1754453451487,-1949.1,0.00035616,14]
[377610627,1754453451497,-497.45,0.00035616,14]
[377610628,1754453451507,-400.0,0.00035616,14]
[377610629,1754453451516,-2724.99,0.00035616,14]
[377610630,1754453451525,-400.0,0.00035616,14]
[377610631,1754453451535,-400.0,0.00035616,14]
[377610632,1754453451544,-1931.42,0.00035616,14]
[377610633,1754453451553,-961.24,0.00035616,14]
[377610634,1754453451563,-509.79,0.00035616,14]
[377610635,1754453451572,-2822.2,0.00035616,14]
[377610636,1754453451581,-400.0,0.00035616,14]
[377610637,1754453451591,-553.5,0.00035616,14]
[377610638,1754453451601,-1132.37,0.00035616,14]
[377610639,1754453451610,-1692.46,0.00035616,14]
[377610640,1754453451619,-410.57,0.00035616,14]
[377610641,1754453451629,-400.0,0.00035616,14]
[377610642,1754453451638,-400.0,0.00035616,14]
[377610643,1754453451647,-400.0,0.00035616,14]
[377610644,1754453451657,-906.21,0.00035616,14]
[377610645,1754453451666,-448.49,0.00035616,14]
[377610646,1754453451675,-1838.02,0.00035616,14]
[377610647,1754453451684,-400.0,0.00035616,14]
[377610648,1754453451694,-1845.59,0.00035616,14]
[377610649,1754453451703,-430.09,0.00035616,14]
[377610650,1754453451713,-290.57312499,0.00035616,14]
[377610651,1754453451722,-400.0,0.00035616,14]
[377610652,1754453451731,-819.56,0.00035616,14]
[377610653,1754453451740,-400.0,0.00035616,14]
[377610654,1754453451750,-2458.65,0.00035616,14]
[377610655,1754453451759,-587.66,0.00035616,14]
[377610656,1754453451769,-400.0,0.00035616,14]
[377610657,1754453451779,-400.0,0.00035616,14]
[377610658,1754453451788,-2103.01,0.00035616,14]
[377610659,1754453451798,-1276.12,0.00035616,14]
[377610660,1754453451807,-2432.4,0.00035616,14]
[377610661,1754453451817,-2291.09,0.00035616,14]
[377610662,1754453451826,-400.0,0.00035616,14]
[377610663,1754453451835,-1496.7,0.00035616,14]
[377610664,1754453451846,-461.32394826,0.00035616,14]
[377610665,1754453451855,-966.15,0.00035616,14]
[377610666,1754453451864,-674.13,0.00035616,14]
[377610667,1754453451874,-979.45,0.00035616,14]
[377610668,1754453451883,-1447.02,0.00035616,14]
[377610669,1754453451892,-400.0,0.00035616,14]
[377610670,1754453451901,-2619.11,0.00035616,14]
[377610671,1754453451910,-1119.52,0.00035616,14]
[377610672,1754453451920,-400.0,0.00035616,14]
[377610673,1754453451929,-400.0,0.00035616,14]